[Event "Early-Titled-Tuesday-Blitz-October-10-2023"]
[Site "Chess.com"]
[Date "2023.10.10"]
[Round "2"]
[White "Haykoooo0o"]
[Black "KnightmareJoker"]
[Result "1-0"]
[WhiteElo "2447"]
[BlackElo "2112"]
[TimeControl "180+1"]
[EndTime "8:16:20 PDT"]
[Termination "Haykoooo0o won by checkmate"]

1. d4 {[%clk 0:02:57.3]} 1... d5 {[%clk 0:03:00]} 2. Nf3 {[%clk 0:02:57.7]} 2...
Nf6 {[%clk 0:03:00.1]} 3. e3 {[%clk 0:02:53.7]} 3... c5 {[%clk 0:02:59.6]} 4.
Be2 {[%clk 0:02:53.8]} 4... Nc6 {[%clk 0:02:59.8]} 5. O-O {[%clk 0:02:52.9]}
5... Bf5 {[%clk 0:02:59.1]} 6. c4 {[%clk 0:02:51.5]} 6... e6 {[%clk 0:02:58.9]}
7. cxd5 {[%clk 0:02:51.4]} 7... Nxd5 {[%clk 0:02:51.6]} 8. Nc3 {[%clk
0:02:50.4]} 8... Bg6 {[%clk 0:02:51.2]} 9. Bd2 {[%clk 0:02:48]} 9... Be7 {[%clk
0:02:45.9]} 10. dxc5 {[%clk 0:02:46.6]} 10... Bxc5 {[%clk 0:02:46]} 11. Rc1
{[%clk 0:02:47.1]} 11... Bb6 {[%clk 0:02:44.5]} 12. Nxd5 {[%clk 0:02:47]} 12...
Qxd5 {[%clk 0:02:42.6]} 13. Bc3 {[%clk 0:02:47]} 13... Qxd1 {[%clk 0:02:22.4]}
14. Rfxd1 {[%clk 0:02:47.9]} 14... O-O {[%clk 0:02:22.3]} 15. Ne5 {[%clk
0:02:44.1]} 15... Nxe5 {[%clk 0:02:17.8]} 16. Bxe5 {[%clk 0:02:45]} 16... Rac8
{[%clk 0:02:17]} 17. Bf3 {[%clk 0:02:44.7]} 17... f6 {[%clk 0:02:05.4]} 18. Bc3
{[%clk 0:02:40.5]} 18... Rc7 {[%clk 0:01:57.9]} 19. Bb4 {[%clk 0:02:40.2]} 19...
Rfc8 {[%clk 0:01:53.7]} 20. Rxc7 {[%clk 0:02:38.5]} 20... Rxc7 {[%clk
0:01:53.2]} 21. Rd8+ {[%clk 0:02:37.3]} 21... Be8 {[%clk 0:01:45.5]} 22. Rxe8+
{[%clk 0:02:37]} 22... Kf7 {[%clk 0:01:46.2]} 23. Rf8+ {[%clk 0:02:37.6]} 23...
Kg6 {[%clk 0:01:46.8]} 24. h4 {[%clk 0:02:37.7]} 24... Rc4 {[%clk 0:01:36.9]}
25. h5+ {[%clk 0:02:34.5]} 25... Kh6 {[%clk 0:01:33.6]} 26. Bc3 {[%clk
0:02:35.1]} 26... Bc7 {[%clk 0:01:31.2]} 27. g4 {[%clk 0:02:32.8]} 27... b5
{[%clk 0:01:29.2]} 28. Rf7 {[%clk 0:02:25.2]} 28... b4 {[%clk 0:01:25]} 29. Bd4
{[%clk 0:02:13.9]} 29... a5 {[%clk 0:01:14.1]} 30. g5+ {[%clk 0:02:13.8]} 30...
Kxg5 {[%clk 0:01:09.9]} 31. Rxg7+ {[%clk 0:02:14.2]} 31... Kf5 {[%clk
0:01:01.1]} 32. Bg4+ {[%clk 0:02:02.2]} 32... Ke4 {[%clk 0:00:59.8]} 33. Bxe6
{[%clk 0:02:02.8]} 33... Rc2 {[%clk 0:00:48.4]} 34. Kg2 {[%clk 0:02:00.2]} 34...
Be5 {[%clk 0:00:44.5]} 35. Bxe5 {[%clk 0:01:57.3]} 35... Kxe5 {[%clk 0:00:44.5]}
36. Bg8 {[%clk 0:01:54.9]} 36... Rxb2 {[%clk 0:00:44]} 37. Rxh7 {[%clk
0:01:55.5]} 37... a4 {[%clk 0:00:43.1]} 38. Ra7 {[%clk 0:01:54.9]} 38... a3
{[%clk 0:00:41.4]} 39. h6 {[%clk 0:01:53.8]} 39... b3 {[%clk 0:00:37.3]} 40.
Bxb3 {[%clk 0:01:52.5]} 40... Rd2 {[%clk 0:00:32.2]} 41. h7 {[%clk 0:01:51.2]}
41... Rd8 {[%clk 0:00:32.9]} 42. Bg8 {[%clk 0:01:51.5]} 42... Ke4 {[%clk
0:00:30.1]} 43. h8=Q {[%clk 0:01:51.5]} 43... Rf8 {[%clk 0:00:21.3]} 44. Qh4+
{[%clk 0:01:50.2]} 44... Ke5 {[%clk 0:00:21.3]} 45. Qf4# {[%clk 0:01:47.9]} 1-0

[Event "Early-Titled-Tuesday-Blitz-October-10-2023"]
[Site "Chess.com"]
[Date "2023.10.10"]
[Round "2"]
[White "c63_amg"]
[Black "ChessRespected"]
[Result "1-0"]
[WhiteElo "2820"]
[BlackElo "2561"]
[TimeControl "180+1"]
[EndTime "8:16:23 PDT"]
[Termination "c63_amg won by resignation"]

1. e4 {[%clk 0:03:00.9]} 1... e5 {[%clk 0:02:59.9]} 2. Nf3 {[%clk 0:03:00.3]}
2... Nc6 {[%clk 0:03:00]} 3. d4 {[%clk 0:03:00.1]} 3... exd4 {[%clk 0:03:00.9]}
4. Bc4 {[%clk 0:03:00.1]} 4... Nf6 {[%clk 0:02:59.2]} 5. e5 {[%clk 0:03:00.5]}
5... d5 {[%clk 0:02:58.8]} 6. Bb5 {[%clk 0:03:00.9]} 6... Ne4 {[%clk 0:02:59]}
7. Nxd4 {[%clk 0:03:01.1]} 7... Bc5 {[%clk 0:02:52.7]} 8. O-O {[%clk 0:02:57.2]}
8... O-O {[%clk 0:02:46.8]} 9. Bxc6 {[%clk 0:02:57.7]} 9... bxc6 {[%clk
0:02:45.1]} 10. f3 {[%clk 0:02:57.4]} 10... Ng5 {[%clk 0:02:39.3]} 11. f4 {[%clk
0:02:54.3]} 11... Ne6 {[%clk 0:02:33.7]} 12. c3 {[%clk 0:02:47.8]} 12... Bb6
{[%clk 0:02:31.3]} 13. Be3 {[%clk 0:02:12]} 13... c5 {[%clk 0:02:22.7]} 14. Nxe6
{[%clk 0:01:33.6]} 14... fxe6 {[%clk 0:02:19.7]} 15. Kh1 {[%clk 0:01:17.5]}
15... d4 {[%clk 0:02:17.2]} 16. Bg1 {[%clk 0:01:16.4]} 16... Bb7 {[%clk
0:02:15.7]} 17. Nd2 {[%clk 0:01:15.8]} 17... dxc3 {[%clk 0:02:08.4]} 18. bxc3
{[%clk 0:01:12.9]} 18... Qd3 {[%clk 0:02:08.3]} 19. Nb3 {[%clk 0:00:43.8]} 19...
Qe4 {[%clk 0:01:52.3]} 20. Qg4 {[%clk 0:00:43.5]} 20... Rf5 {[%clk 0:01:46.9]}
21. Bxc5 {[%clk 0:00:31.1]} 21... h5 {[%clk 0:01:45.1]} 22. Qh3 {[%clk
0:00:28.5]} 22... Rd8 {[%clk 0:01:34.6]} 23. Rae1 {[%clk 0:00:28.3]} 23... Qc2
{[%clk 0:01:30.8]} 24. Bxb6 {[%clk 0:00:27.6]} 24... axb6 {[%clk 0:01:25.5]} 25.
Nd4 {[%clk 0:00:27.6]} 25... Rxd4 {[%clk 0:01:25.4]} 26. cxd4 {[%clk 0:00:28.5]}
26... Qxa2 {[%clk 0:01:22.9]} 27. Rc1 {[%clk 0:00:25.6]} 27... Qe2 {[%clk
0:01:21]} 28. Rg1 {[%clk 0:00:23.4]} 28... Rxf4 {[%clk 0:01:10.6]} 29. Rxc7
{[%clk 0:00:21]} 29... Bxg2+ {[%clk 0:01:08.5]} 30. Qxg2 {[%clk 0:00:20.6]} 1-0

[Event "Early-Titled-Tuesday-Blitz-October-10-2023"]
[Site "Chess.com"]
[Date "2023.10.10"]
[Round "2"]
[White "SharapovEvgeny"]
[Black "Zhigalko_Sergei"]
[Result "1/2-1/2"]
[WhiteElo "2616"]
[BlackElo "2945"]
[TimeControl "180+1"]
[EndTime "8:16:26 PDT"]
[Termination "Game drawn by repetition"]

1. e4 {[%clk 0:03:00.1]} 1... c5 {[%clk 0:03:00.2]} 2. Nf3 {[%clk 0:03:00]} 2...
Nc6 {[%clk 0:03:00.9]} 3. d4 {[%clk 0:03:00.4]} 3... cxd4 {[%clk 0:03:00.2]} 4.
Nxd4 {[%clk 0:03:00.7]} 4... Nf6 {[%clk 0:03:00.8]} 5. Nc3 {[%clk 0:03:00.4]}
5... e5 {[%clk 0:03:01.3]} 6. Ndb5 {[%clk 0:03:00.1]} 6... d6 {[%clk 0:03:01.8]}
7. Bg5 {[%clk 0:02:59.7]} 7... a6 {[%clk 0:03:02]} 8. Na3 {[%clk 0:02:59.9]}
8... b5 {[%clk 0:03:02.4]} 9. Nd5 {[%clk 0:02:59.7]} 9... Be7 {[%clk 0:03:02.4]}
10. Bxf6 {[%clk 0:03:00.1]} 10... Bxf6 {[%clk 0:03:03]} 11. c3 {[%clk
0:03:00.6]} 11... Bg5 {[%clk 0:03:03.2]} 12. Nc2 {[%clk 0:03:00.5]} 12... Ne7
{[%clk 0:03:03.3]} 13. Ncb4 {[%clk 0:02:58.7]} 13... O-O {[%clk 0:03:03]} 14. a4
{[%clk 0:02:53.5]} 14... bxa4 {[%clk 0:03:00.6]} 15. Rxa4 {[%clk 0:02:53]} 15...
a5 {[%clk 0:03:00]} 16. Nxe7+ {[%clk 0:02:52]} 16... Qxe7 {[%clk 0:03:00.6]} 17.
Nd5 {[%clk 0:02:52.1]} 17... Qb7 {[%clk 0:03:00.2]} 18. b3 {[%clk 0:02:42.4]}
18... Bd7 {[%clk 0:02:58.3]} 19. Ra2 {[%clk 0:02:40.1]} 19... Rfc8 {[%clk
0:02:47.9]} 20. Bc4 {[%clk 0:02:38.8]} 20... a4 {[%clk 0:02:48.1]} 21. O-O
{[%clk 0:02:35.5]} 21... g6 {[%clk 0:02:32.3]} 22. Ra3 {[%clk 0:02:20.8]} 22...
Be6 {[%clk 0:02:18.5]} 23. Qd3 {[%clk 0:02:16]} 23... axb3 {[%clk 0:02:09.9]}
24. Rxb3 {[%clk 0:02:13.5]} 24... Qc6 {[%clk 0:02:05.4]} 25. Rb4 {[%clk
0:02:04.4]} 25... Rab8 {[%clk 0:01:42.8]} 26. Rfb1 {[%clk 0:01:53.9]} 26... Rxb4
{[%clk 0:01:28.1]} 27. Rxb4 {[%clk 0:01:53.1]} 27... Bxd5 {[%clk 0:01:16]} 28.
Bxd5 {[%clk 0:01:46]} 28... Qxc3 {[%clk 0:01:13]} 29. Qxc3 {[%clk 0:01:46]}
29... Rxc3 {[%clk 0:01:13.6]} 30. g3 {[%clk 0:01:45.3]} 30... Rc7 {[%clk
0:00:53.7]} 31. Rb7 {[%clk 0:01:44.4]} 31... Rxb7 {[%clk 0:00:53.8]} 32. Bxb7
{[%clk 0:01:44.2]} 32... Kg7 {[%clk 0:00:52.7]} 33. Bd5 {[%clk 0:01:44.1]} 33...
f5 {[%clk 0:00:52.7]} 34. f3 {[%clk 0:01:44.3]} 34... Kf6 {[%clk 0:00:52.1]} 35.
Kg2 {[%clk 0:01:44.5]} 35... Be3 {[%clk 0:00:52.3]} 36. h3 {[%clk 0:01:43.5]}
36... h5 {[%clk 0:00:41.1]} 37. Bc6 {[%clk 0:01:42.9]} 37... Bd2 {[%clk
0:00:41.3]} 38. Bd5 {[%clk 0:01:42.8]} 38... Be1 {[%clk 0:00:41.5]} 39. Bc6
{[%clk 0:01:42.5]} 39... f4 {[%clk 0:00:39.6]} 40. g4 {[%clk 0:01:41.9]} 40...
Ke7 {[%clk 0:00:35.9]} 41. Bd5 {[%clk 0:01:41.7]} 41... Kf6 {[%clk 0:00:29.8]}
42. Bc6 {[%clk 0:01:41.5]} 42... Kg5 {[%clk 0:00:30.2]} 43. Bd5 {[%clk
0:01:41.3]} 43... Kh4 {[%clk 0:00:27.5]} 44. Bf7 {[%clk 0:01:40.5]} 44... Kg5
{[%clk 0:00:23.3]} 45. Bd5 {[%clk 0:01:40.1]} 45... Kh4 {[%clk 0:00:18.1]} 46.
Bf7 {[%clk 0:01:39.7]} 46... Kg5 {[%clk 0:00:18.5]} 47. Bd5 {[%clk 0:01:39.6]}
1/2-1/2

[Event "Early-Titled-Tuesday-Blitz-October-10-2023"]
[Site "Chess.com"]
[Date "2023.10.10"]
[Round "2"]
[White "DerKnipser"]
[Black "DarZay"]
[Result "0-1"]
[WhiteElo "2459"]
[BlackElo "2226"]
[TimeControl "180+1"]
[EndTime "8:16:33 PDT"]
[Termination "DarZay won by resignation"]

1. e4 {[%clk 0:03:00.9]} 1... c5 {[%clk 0:02:58.3]} 2. d4 {[%clk 0:02:34]} 2...
cxd4 {[%clk 0:02:57]} 3. c3 {[%clk 0:02:34.7]} 3... dxc3 {[%clk 0:02:50.4]} 4.
Nxc3 {[%clk 0:02:35.6]} 4... Nc6 {[%clk 0:02:47.3]} 5. Nf3 {[%clk 0:02:35.9]}
5... d6 {[%clk 0:02:45.9]} 6. Bc4 {[%clk 0:02:36.5]} 6... Nf6 {[%clk 0:02:45.2]}
7. e5 {[%clk 0:02:36.5]} 7... dxe5 {[%clk 0:02:28.2]} 8. Qxd8+ {[%clk
0:02:37.4]} 8... Kxd8 {[%clk 0:02:27.4]} 9. Ng5 {[%clk 0:02:35.6]} 9... Kc7
{[%clk 0:02:19.9]} 10. Nxf7 {[%clk 0:02:26.3]} 10... Rg8 {[%clk 0:02:19]} 11.
Nd5+ {[%clk 0:02:04.1]} 11... Kb8 {[%clk 0:02:12.4]} 12. O-O {[%clk 0:01:48]}
12... Be6 {[%clk 0:02:09]} 13. Nxf6 {[%clk 0:01:47.7]} 13... Bxc4 {[%clk
0:02:07.7]} 14. Nd7+ {[%clk 0:01:10.2]} 14... Kc7 {[%clk 0:02:04]} 15. Nfxe5
{[%clk 0:01:06.8]} 15... Nxe5 {[%clk 0:01:59.2]} 16. Nxe5 {[%clk 0:01:07.7]}
16... Bxf1 {[%clk 0:01:58]} 17. Kxf1 {[%clk 0:01:08.6]} 17... e6 {[%clk
0:01:54]} 18. Bf4 {[%clk 0:01:03.5]} 18... Kb6 {[%clk 0:01:06.6]} 19. Rc1 {[%clk
0:00:49.5]} 19... Rd8 {[%clk 0:01:00.7]} 20. Be3+ {[%clk 0:00:42.6]} 20... Ka6
{[%clk 0:00:59.4]} 21. Rc7 {[%clk 0:00:19.5]} 21... Bd6 {[%clk 0:00:55.3]} 22.
Rc3 {[%clk 0:00:08.1]} 22... Bxe5 {[%clk 0:00:52]} 23. Ra3+ {[%clk 0:00:08.8]}
23... Kb5 {[%clk 0:00:52]} 24. Rb3+ {[%clk 0:00:08.2]} 24... Kc6 {[%clk
0:00:51.5]} 0-1

[Event "Early-Titled-Tuesday-Blitz-October-10-2023"]
[Site "Chess.com"]
[Date "2023.10.10"]
[Round "2"]
[White "Alenzer"]
[Black "unclear15"]
[Result "0-1"]
[WhiteElo "2100"]
[BlackElo "2439"]
[TimeControl "180+1"]
[EndTime "8:16:35 PDT"]
[Termination "unclear15 won by resignation"]

1. e4 {[%clk 0:02:59.3]} 1... b6 {[%clk 0:02:50.5]} 2. d4 {[%clk 0:02:48]} 2...
Bb7 {[%clk 0:02:49.4]} 3. Nc3 {[%clk 0:02:44.2]} 3... e6 {[%clk 0:02:49.2]} 4.
Nf3 {[%clk 0:02:31.3]} 4... Nf6 {[%clk 0:02:46.1]} 5. Bd3 {[%clk 0:02:16.9]}
5... d5 {[%clk 0:02:44.1]} 6. e5 {[%clk 0:01:58.7]} 6... Ne4 {[%clk 0:02:42.5]}
7. O-O {[%clk 0:01:48.5]} 7... Be7 {[%clk 0:02:41.8]} 8. Re1 {[%clk 0:01:40.8]}
8... Nxc3 {[%clk 0:02:38.5]} 9. bxc3 {[%clk 0:01:40.1]} 9... Nd7 {[%clk
0:02:31.4]} 10. c4 {[%clk 0:01:39.9]} 10... dxc4 {[%clk 0:02:30]} 11. Bxc4
{[%clk 0:01:40]} 11... O-O {[%clk 0:02:29.5]} 12. Bd3 {[%clk 0:01:38.3]} 12...
c5 {[%clk 0:02:27.5]} 13. c3 {[%clk 0:01:38.2]} 13... cxd4 {[%clk 0:02:26.3]}
14. cxd4 {[%clk 0:01:39.1]} 14... Rc8 {[%clk 0:02:23]} 15. a4 {[%clk 0:01:36.5]}
15... Bb4 {[%clk 0:02:12.1]} 16. Bd2 {[%clk 0:01:33]} 16... Bxf3 {[%clk
0:02:08.6]} 17. gxf3 {[%clk 0:01:31.5]} 17... Bxd2 {[%clk 0:02:07.7]} 18. Qxd2
{[%clk 0:01:31.8]} 18... Nb8 {[%clk 0:02:04.1]} 19. Qf4 {[%clk 0:01:27.1]} 19...
Nc6 {[%clk 0:02:01.3]} 20. Rad1 {[%clk 0:01:27.3]} 20... Nb4 {[%clk 0:01:53.4]}
21. Bb1 {[%clk 0:01:23.4]} 21... Nd5 {[%clk 0:01:50.9]} 22. Qe4 {[%clk
0:01:19.9]} 22... g6 {[%clk 0:01:50]} 23. Qd3 {[%clk 0:01:07]} 23... Rc3 {[%clk
0:01:44.8]} 24. Qe4 {[%clk 0:01:00.6]} 24... Qd7 {[%clk 0:01:33.3]} 25. Kh1
{[%clk 0:00:54.3]} 25... Qxa4 {[%clk 0:01:31.7]} 26. Rg1 {[%clk 0:00:50.5]}
26... Rfc8 {[%clk 0:01:25.8]} 27. Qh4 {[%clk 0:00:31.4]} 27... Rxf3 {[%clk
0:01:19.9]} 28. Be4 {[%clk 0:00:20.3]} 28... Rf4 {[%clk 0:01:13.8]} 29. Rg4
{[%clk 0:00:16.1]} 29... Qxd1+ {[%clk 0:01:10.7]} 0-1

[Event "Early-Titled-Tuesday-Blitz-October-10-2023"]
[Site "Chess.com"]
[Date "2023.10.10"]
[Round "2"]
[White "karinachess1"]
[Black "MagnusCarlsen"]
[Result "0-1"]
[WhiteElo "2638"]
[BlackElo "3278"]
[TimeControl "180+1"]
[EndTime "8:16:39 PDT"]
[Termination "MagnusCarlsen won by resignation"]

1. d4 {[%clk 0:03:00.9]} 1... f5 {[%clk 0:02:57.3]} 2. Bf4 {[%clk 0:02:53.3]}
2... Nf6 {[%clk 0:02:53.7]} 3. Nc3 {[%clk 0:02:53.3]} 3... d6 {[%clk 0:02:52.3]}
4. e3 {[%clk 0:02:45.7]} 4... Nc6 {[%clk 0:02:51.6]} 5. d5 {[%clk 0:02:41.1]}
5... e5 {[%clk 0:02:50.6]} 6. Bg5 {[%clk 0:02:16.5]} 6... Ne7 {[%clk 0:02:47.8]}
7. Bxf6 {[%clk 0:02:10.5]} 7... gxf6 {[%clk 0:02:47.5]} 8. Qh5+ {[%clk
0:02:08.4]} 8... Ng6 {[%clk 0:02:47.5]} 9. Nf3 {[%clk 0:02:06.9]} 9... Qe7
{[%clk 0:02:39.6]} 10. Nh4 {[%clk 0:02:03.2]} 10... Qf7 {[%clk 0:02:37.6]} 11.
Nxf5 {[%clk 0:01:59.3]} 11... a6 {[%clk 0:02:33.4]} 12. Bd3 {[%clk 0:01:54.4]}
12... Ne7 {[%clk 0:02:32.6]} 13. Qxf7+ {[%clk 0:01:50.8]} 13... Kxf7 {[%clk
0:02:33.5]} 14. Nxe7 {[%clk 0:01:48.9]} 14... Bxe7 {[%clk 0:02:33.5]} 15. e4
{[%clk 0:01:33]} 15... h5 {[%clk 0:02:31.7]} 16. h4 {[%clk 0:01:18]} 16... Bd7
{[%clk 0:02:18.5]} 17. a4 {[%clk 0:01:13.6]} 17... Bf8 {[%clk 0:02:17.6]} 18.
Ke2 {[%clk 0:01:08]} 18... Bh6 {[%clk 0:02:16.3]} 19. Nd1 {[%clk 0:01:00.2]}
19... Bg4+ {[%clk 0:02:15.7]} 20. f3 {[%clk 0:01:00.1]} 20... Bd7 {[%clk
0:02:15.4]} 21. Ne3 {[%clk 0:00:48.9]} 21... Rag8 {[%clk 0:02:11.7]} 22. Rag1
{[%clk 0:00:45.7]} 22... Rg3 {[%clk 0:02:10.1]} 23. Nf1 {[%clk 0:00:44.7]} 23...
Rg7 {[%clk 0:02:09.2]} 24. Kf2 {[%clk 0:00:39.7]} 24... Bxa4 {[%clk 0:02:04.7]}
25. b3 {[%clk 0:00:37.7]} 25... Bd7 {[%clk 0:02:04.4]} 26. Ng3 {[%clk
0:00:34.1]} 26... Bd2 {[%clk 0:02:00.7]} 27. Nf5 {[%clk 0:00:13.2]} 27... Bxf5
{[%clk 0:01:58.4]} 28. exf5 {[%clk 0:00:14.1]} 28... Ba5 {[%clk 0:01:58.7]} 29.
Rh2 {[%clk 0:00:14.7]} 29... Bb6+ {[%clk 0:01:58.5]} 30. Kf1 {[%clk 0:00:15.3]}
30... Bxg1 {[%clk 0:01:58.3]} 31. Kxg1 {[%clk 0:00:16.2]} 31... a5 {[%clk
0:01:56.9]} 32. Kf2 {[%clk 0:00:16.4]} 32... Ra8 {[%clk 0:01:56.6]} 33. Rh1
{[%clk 0:00:16]} 33... a4 {[%clk 0:01:56.7]} 34. Ra1 {[%clk 0:00:13.5]} 34... a3
{[%clk 0:01:56.6]} 35. Ra2 {[%clk 0:00:13.6]} 35... c6 {[%clk 0:01:55.5]} 36.
Bc4 {[%clk 0:00:12.8]} 36... Ke8 {[%clk 0:01:47.2]} 37. dxc6 {[%clk 0:00:10.5]}
37... bxc6 {[%clk 0:01:47]} 38. Bf1 {[%clk 0:00:11.4]} 38... d5 {[%clk
0:01:46.9]} 39. Ke3 {[%clk 0:00:11.8]} 39... Ke7 {[%clk 0:01:47]} 40. b4 {[%clk
0:00:11.1]} 40... Kd6 {[%clk 0:01:46.1]} 41. Kd3 {[%clk 0:00:11.2]} 41... c5
{[%clk 0:01:44.7]} 42. bxc5+ {[%clk 0:00:11.2]} 42... Kxc5 {[%clk 0:01:45.6]}
43. Kc3 {[%clk 0:00:12.1]} 43... Rb7 {[%clk 0:01:40.4]} 44. g4 {[%clk
0:00:12.2]} 44... d4+ {[%clk 0:01:40.2]} 45. Kd2 {[%clk 0:00:11.6]} 45... Rb2
{[%clk 0:01:41.1]} 46. Ra1 {[%clk 0:00:12.1]} 46... a2 {[%clk 0:01:41.3]} 47. g5
{[%clk 0:00:12.3]} 47... Rb1 {[%clk 0:01:41.3]} 0-1

[Event "Early-Titled-Tuesday-Blitz-October-10-2023"]
[Site "Chess.com"]
[Date "2023.10.10"]
[Round "2"]
[White "shimastream"]
[Black "Aswathchess"]
[Result "1-0"]
[WhiteElo "2979"]
[BlackElo "2613"]
[TimeControl "180+1"]
[EndTime "8:16:39 PDT"]
[Termination "shimastream won by resignation"]

1. c4 {[%clk 0:03:00.9]} 1... Nf6 {[%clk 0:02:59.3]} 2. Nc3 {[%clk 0:02:59.1]}
2... e6 {[%clk 0:02:59.7]} 3. d4 {[%clk 0:02:58]} 3... d5 {[%clk 0:02:59.9]} 4.
Bg5 {[%clk 0:02:58.1]} 4... Bb4 {[%clk 0:02:57.2]} 5. e3 {[%clk 0:02:57.3]} 5...
h6 {[%clk 0:02:56.4]} 6. Bh4 {[%clk 0:02:57.3]} 6... g5 {[%clk 0:02:52.2]} 7.
Bg3 {[%clk 0:02:57.4]} 7... Ne4 {[%clk 0:02:50.6]} 8. Ne2 {[%clk 0:02:51.7]}
8... h5 {[%clk 0:02:49.8]} 9. h4 {[%clk 0:02:51.5]} 9... Nxg3 {[%clk 0:02:48.9]}
10. Nxg3 {[%clk 0:02:52.4]} 10... gxh4 {[%clk 0:02:45.4]} 11. Nxh5 {[%clk
0:02:52.4]} 11... Nd7 {[%clk 0:02:28.9]} 12. Rc1 {[%clk 0:02:43.6]} 12... c6
{[%clk 0:02:23.7]} 13. a3 {[%clk 0:02:39.9]} 13... Bd6 {[%clk 0:02:19.2]} 14.
cxd5 {[%clk 0:02:26.9]} 14... exd5 {[%clk 0:02:17.9]} 15. Ng7+ {[%clk
0:02:27.1]} 15... Kf8 {[%clk 0:02:16.9]} 16. Nf5 {[%clk 0:02:28]} 16... Bc7
{[%clk 0:01:38]} 17. Bd3 {[%clk 0:02:25.3]} 17... Qg5 {[%clk 0:01:25.9]} 18. Qf3
{[%clk 0:02:23]} 18... Nf6 {[%clk 0:01:23.4]} 19. Kd1 {[%clk 0:02:13.9]} 19...
Rh5 {[%clk 0:01:20.9]} 20. g4 {[%clk 0:01:40.3]} 20... Nxg4 {[%clk 0:01:16.2]}
21. Rg1 {[%clk 0:01:34.2]} 21... Bxf5 {[%clk 0:00:44]} 22. Bxf5 {[%clk 0:01:31]}
22... Nxf2+ {[%clk 0:00:28.4]} 23. Qxf2 {[%clk 0:01:30]} 23... Qxf5 {[%clk
0:00:28]} 24. Qe2 {[%clk 0:01:25.4]} 24... Re8 {[%clk 0:00:27.7]} 25. Kd2 {[%clk
0:01:23.4]} 25... Bf4 {[%clk 0:00:26.9]} 26. Nd1 {[%clk 0:01:15.4]} 26... Qe4
{[%clk 0:00:24.5]} 27. Qxh5 {[%clk 0:01:10]} 27... Qxd4+ {[%clk 0:00:15.5]} 28.
Kc2 {[%clk 0:01:09.6]} 28... Qe4+ {[%clk 0:00:15.6]} 29. Kb3 {[%clk 0:01:09.4]}
29... Bxe3 {[%clk 0:00:10.3]} 30. Nxe3 {[%clk 0:01:09]} 30... Qxe3+ {[%clk
0:00:10.2]} 31. Ka2 {[%clk 0:01:09.7]} 1-0

[Event "Early-Titled-Tuesday-Blitz-October-10-2023"]
[Site "Chess.com"]
[Date "2023.10.10"]
[Round "2"]
[White "DeArron_Fox"]
[Black "Cecile-Haussernot"]
[Result "1-0"]
[WhiteElo "2518"]
[BlackElo "2302"]
[TimeControl "180+1"]
[EndTime "8:16:40 PDT"]
[Termination "DeArron_Fox won by resignation"]

1. d4 {[%clk 0:02:59.5]} 1... Nf6 {[%clk 0:02:58]} 2. c4 {[%clk 0:03:00.1]} 2...
e6 {[%clk 0:02:58.2]} 3. Nf3 {[%clk 0:02:57.5]} 3... b6 {[%clk 0:02:54.3]} 4. g3
{[%clk 0:02:55.2]} 4... Bb7 {[%clk 0:02:54.7]} 5. Bg2 {[%clk 0:02:55.5]} 5...
Bb4+ {[%clk 0:02:54.1]} 6. Bd2 {[%clk 0:02:55]} 6... Qe7 {[%clk 0:02:54.3]} 7.
O-O {[%clk 0:02:54]} 7... O-O {[%clk 0:02:51.6]} 8. Bf4 {[%clk 0:02:53.4]} 8...
Ne4 {[%clk 0:02:47.8]} 9. Bxc7 {[%clk 0:02:04.5]} 9... Rc8 {[%clk 0:02:29.1]}
10. Bxb8 {[%clk 0:01:50.9]} 10... Raxb8 {[%clk 0:02:29.2]} 11. a3 {[%clk
0:01:38.1]} 11... Bd6 {[%clk 0:02:29.1]} 12. Nfd2 {[%clk 0:01:19.7]} 12... Nxd2
{[%clk 0:02:17.2]} 13. Nxd2 {[%clk 0:01:20.6]} 13... Bxg2 {[%clk 0:02:15.3]} 14.
Kxg2 {[%clk 0:01:21.5]} 14... e5 {[%clk 0:02:14.2]} 15. e3 {[%clk 0:00:35.8]}
15... exd4 {[%clk 0:02:07.7]} 16. exd4 {[%clk 0:00:36.7]} 16... Qf6 {[%clk
0:02:03]} 17. Qg4 {[%clk 0:00:15.4]} 17... h5 {[%clk 0:01:59.1]} 18. Qxd7 {[%clk
0:00:02.3]} 18... Qxd4 {[%clk 0:01:57.4]} 19. Nf3 {[%clk 0:00:03.2]} 19... Qf6
{[%clk 0:01:55.8]} 20. Rad1 {[%clk 0:00:03.1]} 20... Bf8 {[%clk 0:01:48.3]} 21.
Qxa7 {[%clk 0:00:02.9]} 21... Qxb2 {[%clk 0:01:45.7]} 22. Rd7 {[%clk 0:00:02]}
22... Qf6 {[%clk 0:01:45.5]} 23. Re1 {[%clk 0:00:01.6]} 23... b5 {[%clk
0:01:43.8]} 24. cxb5 {[%clk 0:00:01.7]} 24... Rxb5 {[%clk 0:01:41]} 25. Rd4
{[%clk 0:00:01.5]} 25... Rb2 {[%clk 0:01:37.9]} 26. Qd7 {[%clk 0:00:01.8]} 26...
Rcb8 {[%clk 0:01:35.6]} 27. Rde4 {[%clk 0:00:01.5]} 27... Bc5 {[%clk 0:01:31.7]}
28. R4e2 {[%clk 0:00:01.7]} 28... R2b3 {[%clk 0:01:27.1]} 29. Re8+ {[%clk
0:00:01.8]} 29... Kh7 {[%clk 0:01:26.8]} 30. Rxb8 {[%clk 0:00:01.7]} 30... Qxf3+
{[%clk 0:01:27]} 31. Kh3 {[%clk 0:00:01.9]} 31... Rxb8 {[%clk 0:01:25.1]} 32.
Qc6 {[%clk 0:00:01.8]} 32... Bxf2 {[%clk 0:01:22.1]} 33. Qxf3 {[%clk 0:00:01.3]}
33... Bxe1 {[%clk 0:01:22.5]} 34. Qxh5+ {[%clk 0:00:01.6]} 34... Kg8 {[%clk
0:01:22.1]} 35. Qe5 {[%clk 0:00:02.5]} 35... Rb1 {[%clk 0:01:20.5]} 36. Qe8+
{[%clk 0:00:01.6]} 36... Kh7 {[%clk 0:01:20.8]} 37. Qe4+ {[%clk 0:00:02.5]} 1-0